bitfinex-derivatives/quotes_BTCF0:USTF0_20250517
["timestamp","ask_amount","ask_price","bid_price","bid_amount"]
[1747509685782,1.40761056,103160.0,103150.0,0.30754308]
[1747509689186,1.53020319,103160.0,103150.0,0.30754308]
[1747509689384,1.40761056,103160.0,103150.0,0.30754308]
[1747509691687,1.61936186,103160.0,103150.0,0.30754308]
[1747509692389,1.46356923,103160.0,103150.0,0.30754308]
[1747509692582,0.74196903,103160.0,103150.0,0.43013571]
[1747509693284,0.56196903,103160.0,103150.0,0.43013571]
[1747509693880,0.56196903,103160.0,103150.0,0.30754308]
[1747509694577,0.59436903,103160.0,103150.0,0.30754308]
[1747509695193,0.95516903,103160.0,103150.0,0.30754308]
[1747509700291,1.07776166,103160.0,103150.0,0.30754308]
[1747509700490,1.11046166,103160.0,103150.0,0.30754308]
[1747509701095,1.29046166,103160.0,103150.0,0.30754308]
[1747509703096,1.16786903,103160.0,103150.0,0.30754308]
[1747509704989,1.13516903,103160.0,103150.0,0.30754308]
[1747509709398,1.16686903,103160.0,103150.0,0.30754308]
[1747509713107,0.98686903,103160.0,103150.0,0.30754308]
[1747509713701,0.92276903,103160.0,103150.0,0.43013571]
[1747509714207,0.95486903,103160.0,103150.0,0.43013571]
[1747509714505,0.72897613,103160.0,103150.0,0.43013571]
[1747509715505,0.72697613,103160.0,103150.0,0.43013571]
[1747509717006,0.72497613,103160.0,103150.0,0.43013571]
[1747509717210,0.5737918,103160.0,103150.0,0.43013571]
[1747509718794,0.5737918,103160.0,103150.0,0.63633571]
[1747509719700,0.7675849,103160.0,103150.0,0.63633571]
[1747509720208,0.5862336,103160.0,103150.0,0.63633571]
[1747509720706,0.5862336,103160.0,103150.0,0.30754308]
[1747509720908,0.6162336,103160.0,103150.0,0.30754308]
[1747509721810,0.6467336,103160.0,103150.0,0.30754308]
[1747509722211,0.8287336,103160.0,103150.0,0.30754308]
[1747509722404,0.8287336,103160.0,103150.0,0.51346308]
[1747509723096,0.8307336,103160.0,103150.0,0.51346308]
[1747509723411,0.8287336,103160.0,103150.0,0.51346308]
[1747509723611,0.8307336,103160.0,103150.0,0.51346308]
[1747509729412,0.8002336,103160.0,103150.0,0.51346308]
[1747509730611,0.8002336,103160.0,103150.0,0.55052418]
[1747509733020,0.8002336,103160.0,103150.0,0.67311681]
[1747509733915,0.8002336,103160.0,103150.0,0.67443681]
[1747509736014,0.8002336,103160.0,103150.0,0.55184418]
[1747509736217,0.8002336,103160.0,103150.0,0.67443681]
[1747509737422,0.7702336,103160.0,103150.0,0.67443681]
[1747509738419,0.7702336,103160.0,103150.0,0.72234178]
[1747509742115,0.3964405,103160.0,103150.0,0.72234178]
[1747509743015,0.3944405,103160.0,103150.0,0.72234178]
[1747509743212,0.5724405,103160.0,103150.0,0.72234178]
[1747509743622,0.2116405,103160.0,103150.0,0.72234178]
[1747509744321,0.0316405,103160.0,103150.0,0.72234178]
[1747509747526,0.2254336,103160.0,103150.0,0.59974915]
[1747509747826,0.2254336,103160.0,103150.0,0.51510178]
[1747509748025,0.2254336,103160.0,103150.0,0.72246178]
[1747509748227,0.4054336,103160.0,103150.0,0.72246178]
[1747509749012,0.2116405,103160.0,103150.0,0.72246178]
[1747509749425,0.4054336,103160.0,103150.0,0.72246178]
[1747509752230,0.2116405,103160.0,103150.0,0.72246178]
[1747509752529,0.2116405,103160.0,103150.0,0.77179808]
[1747509753128,0.4054336,103160.0,103150.0,0.77179808]
[1747509753318,0.7662336,103160.0,103150.0,0.77179808]
[1747509754028,0.7662336,103160.0,103150.0,0.64920545]
[1747509754226,0.7662336,103160.0,103150.0,0.77151808]
[1747509754624,0.4054336,103160.0,103150.0,0.77151808]
[1747509756533,0.2116405,103160.0,103150.0,0.77151808]
[1747509756829,0.4054335,103160.0,103150.0,0.77151808]
[1747509760537,0.4054335,103160.0,103150.0,0.72218178]
[1747509769151,0.2116405,103160.0,103150.0,0.72218178]
[1747509771961,0.4054336,103160.0,103150.0,0.72218178]
[1747509772253,0.4054336,103160.0,103150.0,0.59958915]
[1747509772459,0.2116405,103160.0,103150.0,0.59958915]
[1747509772659,0.2116405,103160.0,103150.0,0.72218178]
[1747509772861,0.2116405,103160.0,103150.0,0.73445698]
[1747509775163,0.1812405,103160.0,103150.0,0.73445698]
[1747509775358,0.1812405,103160.0,103150.0,1.09525698]
[1747509776159,0.0012405,103160.0,103150.0,1.09525698]
[1747509781666,0.0012405,103160.0,103150.0,1.44565698]
[1747509782161,0.0012405,103160.0,103150.0,1.23857698]
[1747509782351,0.0012405,103160.0,103150.0,1.44461698]
[1747509783462,0.0012405,103160.0,103150.0,1.65097698]
[1747509787670,0.0012405,103160.0,103150.0,1.52838435]
[1747509787875,0.0012405,103160.0,103150.0,1.65093698]
[1747509788175,0.1812405,103160.0,103150.0,1.65093698]
[1747509789380,0.18668266,103160.0,103150.0,1.65093698]
[1747509790376,0.18668266,103160.0,103150.0,1.68797356]
[1747509796484,0.1812405,103160.0,103150.0,1.68797356]
[1747509797081,0.1812405,103160.0,103150.0,1.32717356]
[1747509797681,0.18668266,103160.0,103150.0,1.32717356]
[1747509797982,0.21978266,103160.0,103150.0,1.32717356]
[1747509798783,0.2143405,103160.0,103150.0,1.32717356]
[1747509799578,0.21978266,103160.0,103150.0,1.32717356]
[1747509799779,0.21978266,103160.0,103150.0,0.91481356]
[1747509800085,0.41357576,103160.0,103150.0,0.91481356]
[1747509800272,0.44577576,103160.0,103150.0,0.91481356]
[1747509800473,0.25198266,103160.0,103150.0,0.91481356]
[1747509800679,0.44577576,103160.0,103150.0,0.91481356]
[1747509800891,0.25198266,103160.0,103150.0,0.91481356]
[1747509801783,0.44577576,103160.0,103150.0,0.91481356]
[1747509802688,0.4403336,103160.0,103150.0,0.91481356]
[1747509803682,0.41357576,103160.0,103150.0,0.91481356]
[1747509805585,0.41357576,103160.0,103150.0,0.56441356]
[1747509806884,0.21978266,103160.0,103150.0,0.56441356]
[1747509807080,0.21978266,103160.0,103150.0,0.77037356]
[1747509809186,0.21978266,103160.0,103150.0,0.64778093]
[1747509809489,0.41357576,103160.0,103150.0,0.97633356]
[1747509809689,0.21978266,103160.0,103150.0,0.97633356]
[1747509810685,0.41357576,103160.0,103150.0,0.64778093]
[1747509810892,0.47827576,103160.0,103150.0,0.97633356]
[1747509812394,0.47827576,103160.0,103150.0,0.92699726]
[1747509812785,0.4728336,103160.0,103150.0,0.92699726]
[1747509813195,0.4405336,103160.0,103150.0,0.92699726]
[1747509815790,0.2143405,103160.0,103150.0,0.92699726]
[1747509815990,0.1812405,103160.0,103150.0,0.92699726]
[1747509816199,0.1812405,103160.0,103150.0,0.51507726]
[1747509816393,0.1812405,103160.0,103150.0,0.92699726]
[1747509816595,0.1812405,103160.0,103150.0,1.28779726]
[1747509816801,0.2128405,103160.0,103150.0,1.28779726]
[1747509817203,0.2128405,103160.0,103150.0,0.92699726]
[1747509817502,0.2128405,103160.0,103150.0,1.28779726]
[1747509817799,0.21828266,103160.0,103150.0,1.28779726]
[1747509819906,0.21828266,103160.0,103150.0,0.92699726]
[1747509821305,0.41207576,103160.0,103150.0,0.51507726]
[1747509822210,0.21828266,103160.0,103150.0,0.51507726]
[1747509822402,0.41207576,103160.0,103150.0,0.51507726]
[1747509823111,0.21828266,103160.0,103150.0,0.51507726]
[1747509826914,0.41207566,103160.0,103150.0,0.51507726]
[1747509827109,0.21828266,103160.0,103150.0,0.51507726]
[1747509827609,0.21828266,103160.0,103150.0,0.92695726]
[1747509827805,0.41207566,103160.0,103150.0,0.39248463]
[1747509828112,0.41207566,103160.0,103150.0,0.51507726]
[1747509831016,1.01806092,103160.0,103150.0,0.10237283]
[1747509831212,0.96086829,103160.0,103150.0,0.08781013]
[1747509831404,0.96086829,103160.0,103150.0,0.28162203]
[1747509831604,0.96086829,103160.0,103150.0,0.03990516]
[1747509832415,1.08346092,103160.0,103150.0,0.23371706]
[1747509832614,0.96086829,103160.0,103150.0,0.23371706]
[1747509832915,1.08346092,103160.0,103150.0,0.23371706]
[1747509833211,0.96086829,103160.0,103150.0,0.23371706]
[1747509834112,0.96086829,103160.0,103150.0,0.29038048]
[1747509842113,0.95542613,103160.0,103150.0,0.29038048]
[1747509847522,1.1067641,103160.0,103150.0,0.29038048]
[1747509850325,1.11220626,103160.0,103150.0,0.29038048]
[1747509850915,0.92421363,103160.0,103150.0,0.41297311]
[1747509851115,0.89261363,103160.0,103150.0,0.41297311]
[1747509851321,0.88717147,103160.0,103150.0,0.41297311]
[1747509852326,0.53181363,103160.0,103150.0,0.41297311]
[1747509853324,0.52637147,103160.0,103150.0,0.41297311]
[1747509853517,0.88717147,103160.0,103150.0,0.41297311]
[1747509853917,0.52637147,103160.0,103150.0,0.41297311]
[1747509855023,0.52637147,103160.0,103150.0,0.42750787]
[1747509855329,0.88717147,103160.0,103150.0,0.30491524]
[1747509855931,0.52637147,103160.0,103150.0,0.42750787]
[1747509856229,0.34637147,103160.0,103150.0,0.42750787]
[1747509857026,0.70717147,103160.0,103150.0,0.42750787]
[1747509857224,0.52637147,103160.0,103150.0,0.42750787]
[1747509857424,0.88717147,103160.0,103150.0,0.42750787]
[1747509857816,0.33257847,103160.0,103150.0,0.42750787]
[1747509858020,0.52637157,103160.0,103150.0,0.42750787]
[1747509858227,0.34637157,103160.0,103150.0,0.42750787]
[1747509858537,0.35181373,103160.0,103150.0,0.42750787]
[1747509859224,0.33802063,103160.0,103150.0,0.42750787]
[1747509859428,0.53181373,103160.0,103150.0,0.42750787]
[1747509860229,0.35181373,103160.0,103150.0,0.42750787]
[1747509861730,0.20047576,103160.0,103150.0,0.42750787]
[1747509862634,0.00668266,103160.0,103150.0,1.34458787]
[1747509862832,0.00668266,103160.0,103150.0,1.38162445]
[1747509863028,0.00668266,103160.0,103150.0,1.42951568]
[1747509865535,0.00668266,103160.0,103150.0,1.06871568]
[1747509868140,0.18668266,103160.0,103150.0,1.06871568]
[1747509870139,0.18668266,103160.0,103150.0,1.02082445]
[1747509875244,0.18592316,103160.0,103150.0,1.02006495]
[1747509878948,0.21872316,103160.0,103150.0,1.02006495]
[1747509879648,0.21872316,103160.0,103150.0,1.38086495]
[1747509879946,0.18592316,103160.0,103150.0,1.38086495]
[1747509881250,0.18592316,103160.0,103150.0,1.34382837]
[1747509884142,0.18592316,103160.0,103150.0,1.22123574]
[1747509884342,0.18592316,103160.0,103150.0,1.34382837]
[1747509884953,0.21842316,103160.0,103150.0,1.34382837]
[1747509885146,0.21842316,103160.0,103150.0,1.39170034]
[1747509885755,0.21842316,103160.0,103150.0,1.42873692]
[1747509885956,0.21842316,103160.0,103150.0,1.06793692]
[1747509894762,0.21842316,103160.0,103150.0,0.94534429]
[1747509895065,0.21842316,103160.0,103150.0,1.27369692]
[1747509895557,0.21842316,103160.0,103150.0,0.51165692]
[1747509896060,0.21842316,103160.0,103150.0,0.71741692]
[1747509897555,0.21842316,103160.0,103150.0,0.59482429]
[1747509897756,0.21842316,103160.0,103150.0,0.71741692]
[1747509899462,0.21842316,103160.0,103150.0,0.59482429]
[1747509899648,0.21842316,103160.0,103150.0,0.71741692]
[1747509901360,0.21842316,103160.0,103150.0,0.92317692]
[1747509902355,0.21842316,103160.0,103150.0,0.51165692]
[1747509902561,0.21842316,103160.0,103150.0,0.92313692]
[1747509906859,0.21842316,103160.0,103150.0,0.80054429]
[1747509907165,0.21842316,103160.0,103150.0,0.92313692]
[1747509907464,0.24892316,103160.0,103150.0,0.92313692]
[1747509907765,0.24892316,103160.0,103150.0,0.93543664]
[1747509908167,0.92610889,103160.0,103150.0,0.40136401]
[1747509908362,1.08040152,103160.0,103150.0,0.30766401]
[1747509909063,0.95780889,103160.0,103150.0,0.30766401]
[1747509910470,0.95780889,103160.0,103150.0,0.25979204]
[1747509911562,1.08040152,103160.0,103150.0,0.24525728]
[1747509911766,1.17734152,103160.0,103150.0,0.05144538]
[1747509911966,1.42734152,103160.0,103150.0,0.24525718]
[1747509912171,1.17734152,103160.0,103150.0,0.24525718]
[1747509913081,1.17734152,103160.0,103150.0,0.19592088]
[1747509914777,1.18034152,103160.0,103150.0,0.19592088]
[1747509915383,1.18334152,103160.0,103150.0,0.19592088]
[1747509917482,1.08640152,103160.0,103150.0,0.19592088]
[1747509917689,1.18334152,103160.0,103150.0,0.19592088]
[1747509917986,0.82254152,103160.0,103150.0,0.19592088]
[1747509918176,1.54414152,103160.0,103150.0,0.19592088]
[1747509918677,1.44720152,103160.0,103150.0,0.19592088]
[1747509919285,0.72560152,103160.0,103150.0,0.19592088]
[1747509919483,1.44720152,103160.0,103150.0,0.19592088]
[1747509920086,1.20201626,103160.0,103150.0,0.19592088]
[1747509920285,1.20201626,103160.0,103150.0,0.29092088]
[1747509921077,1.13981626,103160.0,103150.0,0.29092088]
[1747509921280,1.13681626,103160.0,103150.0,0.41351351]
[1747509921589,1.13881626,103160.0,103150.0,0.41351351]
[1747509921887,0.77801626,103160.0,103150.0,0.29092088]
[1747509923085,0.77701626,103160.0,103150.0,0.29092088]
[1747509923291,0.89960889,103160.0,103150.0,0.29092088]
[1747509923589,0.93180889,103160.0,103150.0,0.29092088]
[1747509923777,1.11434686,103160.0,103150.0,0.29092088]
[1747509924589,1.11434686,103160.0,103150.0,0.30560717]
[1747509930287,1.08314686,103160.0,103150.0,0.30560717]
[1747509936999,1.05094686,103160.0,103150.0,0.30560717]
[1747509937492,0.69014686,103160.0,103150.0,0.30560717]
[1747509937697,1.05094686,103160.0,103150.0,0.30560717]
[1747509940391,1.11148205,103160.0,103150.0,0.30560717]
[1747509944202,0.98888942,103160.0,103150.0,0.30560717]
[1747509944394,1.11148205,103160.0,103150.0,0.30560717]
[1747509950003,1.26297484,103160.0,103150.0,0.30560717]
[1747509951709,1.29527484,103160.0,103150.0,0.30560717]
[1747509952007,1.32817484,103160.0,103150.0,0.30560717]
[1747509954609,1.29527484,103160.0,103150.0,0.30560717]
[1747509959114,1.32567484,103160.0,103150.0,0.30560717]
[1747509961711,0.96487484,103160.0,103150.0,0.30560717]
[1747509961914,1.32567484,103160.0,103150.0,0.30560717]
[1747509969424,1.11380168,103160.0,103150.0,0.30560717]
[1747509971618,1.08340168,103160.0,103150.0,0.30560717]
[1747509975429,0.96080905,103160.0,103150.0,0.30560717]
[1747509975727,1.08340168,103160.0,103150.0,0.30560717]
[1747509977325,0.93190889,103160.0,103150.0,0.30560717]
[1747509978422,0.96280889,103160.0,103150.0,0.30560717]
[1747509983424,1.11431673,103160.0,103150.0,0.30560717]
[1747509984833,0.75351673,103160.0,103150.0,0.30560717]
[1747509985130,1.11431673,103160.0,103150.0,0.30560717]
[1747510006554,0.9917241,103160.0,103150.0,0.30560717]
[1747510006754,1.11431673,103160.0,103150.0,0.30560717]
[1747510011359,1.23690936,103160.0,103150.0,0.30560717]
[1747510012260,1.11431673,103160.0,103150.0,0.30560717]
[1747510013160,1.11431673,103160.0,103150.0,0.29092088]
[1747510018474,1.47511673,103160.0,103150.0,0.29092088]
[1747510019371,1.3525241,103160.0,103150.0,0.29092088]
[1747510019570,1.47511673,103160.0,103150.0,0.29092088]
[1747510021468,1.41191673,103160.0,103150.0,0.09710908]
[1747510021768,1.59780936,103160.0,103150.0,0.06510908]
[1747510021964,1.59780936,103160.0,103150.0,0.00210908]
[1747510022163,1.97780936,103160.0,103150.0,0.00210908]
[1747510023565,1.97780936,103160.0,103150.0,0.03360908]
[1747510027968,1.59780936,103160.0,103150.0,0.03360908]
[1747510030078,1.44630152,103160.0,103150.0,0.03360908]
[1747510031673,1.44630152,103160.0,103150.0,0.06660908]
[1747510034183,0.72470152,103160.0,103150.0,0.06660908]
[1747510034382,1.44630152,103160.0,103150.0,0.09800908]
[1747510039985,1.44630152,103160.0,103150.0,0.06660908]
[1747510040584,0.1938311,103140.0,103130.0,0.01]
[1747510040779,0.1938499,103130.0,103120.0,0.13232986]
[1747510041083,0.94824253,103130.0,103120.0,0.13232986]
[1747510041385,0.94938178,103130.0,103120.0,0.13232986]
[1747510042584,0.95904664,103130.0,103120.0,0.13232986]
[1747510043274,0.95904664,103130.0,103120.0,0.13532986]
[1747510043584,0.95904664,103130.0,103120.0,0.13832986]
[1747510043886,0.95904664,103130.0,103120.0,0.13532986]
[1747510044079,0.95904664,103130.0,103120.0,0.13732986]
[1747510044285,0.95904664,103130.0,103120.0,0.13532986]
[1747510044686,0.97333898,103130.0,103120.0,0.13532986]
[1747510044885,0.95904664,103130.0,103120.0,0.13532986]
[1747510045274,0.96204664,103130.0,103120.0,0.13432986]
[1747510045473,0.96204664,103130.0,103120.0,0.13232986]
[1747510045679,0.96504664,103130.0,103120.0,0.13232986]
[1747510046285,1.32584664,103130.0,103120.0,0.13232986]
[1747510046481,1.32584664,103130.0,103120.0,0.0953]
[1747510048288,0.60424664,103130.0,103120.0,0.0953]
[1747510048489,1.32584664,103130.0,103120.0,0.0953]
[1747510049789,1.34015688,103130.0,103120.0,0.0953]
[1747510050392,1.30955688,103130.0,103120.0,0.0953]
[1747510051591,0.58795688,103130.0,103120.0,0.0953]
[1747510051785,1.30955688,103130.0,103120.0,0.0953]
[1747510054792,0.58795688,103130.0,103120.0,0.0953]
[1747510054993,1.30955688,103130.0,103120.0,0.0953]
[1747510056392,1.31499904,103130.0,103120.0,0.0953]
[1747510056792,1.19240641,103130.0,103120.0,0.0953]
[1747510056994,1.31499904,103130.0,103120.0,0.0953]
[1747510058694,1.46627499,103130.0,103120.0,0.0953]
[1747510061496,0.74467499,103130.0,103120.0,0.0953]
[1747510061691,1.46627499,103130.0,103120.0,0.0953]
[1747510062096,0.74467499,103130.0,103120.0,0.0953]
[1747510062297,1.46627499,103130.0,103120.0,0.0953]
[1747510063797,1.67187499,103130.0,103120.0,0.0953]
[1747510070100,1.70267499,103130.0,103120.0,0.0953]
[1747510073802,1.70381424,103130.0,103120.0,0.0953]
[1747510075808,1.70381424,103130.0,103120.0,0.02471204]
[1747510077419,0.98221424,103130.0,103120.0,0.02471204]
[1747510077607,1.70381424,103130.0,103120.0,0.02471204]
[1747510078911,1.58122161,103130.0,103120.0,0.02471204]
[1747510079115,1.55253829,103130.0,103120.0,0.08551204]
[1747510084909,1.55249829,103130.0,103120.0,0.27938064]
[1747510085109,1.72725829,103130.0,103120.0,0.08551204]
[1747510085408,1.31613829,103130.0,103120.0,0.27938064]
[1747510085913,1.93931837,103130.0,103120.0,0.27938064]
[1747510086110,1.74666088,103130.0,103120.0,0.27938064]
[1747510086312,1.45813351,103130.0,103120.0,0.27938064]
[1747510086509,1.86925351,103130.0,103120.0,0.27938064]
[1747510086717,1.90125351,103130.0,103120.0,0.27938064]
[1747510089107,1.49013351,103130.0,103120.0,0.27938064]
[1747510089406,1.90125351,103130.0,103120.0,0.27938064]
[1747510089915,1.77866088,103130.0,103120.0,0.27938064]
[1747510090114,1.90125351,103130.0,103120.0,0.27938064]
[1747510090810,1.93375351,103130.0,103120.0,0.08551204]
[1747510091112,1.96415351,103130.0,103120.0,0.08551204]
[1747510091418,0.1938686,103120.0,103110.0,0.19582698]
[1747510091620,0.74066123,103120.0,103110.0,0.22592698]
[1747510091818,0.74180048,103120.0,103110.0,0.22592698]
[1747510092015,0.74180048,103120.0,103110.0,0.03203958]
[1747510092215,0.92180048,103120.0,103110.0,0.03203958]
[1747510092425,0.92180048,103120.0,103110.0,0.22592698]
[1747510093113,0.92380048,103120.0,103110.0,0.22592698]
[1747510093319,0.92580048,103120.0,103110.0,0.03203958]
[1747510093520,0.92580048,103120.0,103110.0,0.22592698]
[1747510094604,0.92580048,103120.0,103110.0,0.29132698]
[1747510097522,0.80320785,103120.0,103110.0,0.29132698]
[1747510097724,0.92580048,103120.0,103110.0,0.29132698]
[1747510098922,0.80320785,103120.0,103110.0,0.29132698]
[1747510099125,0.92580048,103120.0,103110.0,0.29132698]
[1747510100523,0.80320785,103120.0,103110.0,0.29132698]
[1747510100714,0.92580048,103120.0,103110.0,0.29132698]
[1747510101025,0.93124264,103120.0,103110.0,0.29132698]
[1747510104217,0.57044264,103120.0,103110.0,0.29132698]
[1747510104416,0.93124264,103120.0,103110.0,0.29132698]
[1747510106226,1.08266772,103120.0,103110.0,0.29132698]
[1747510106825,1.08380697,103120.0,103110.0,0.29132698]
[1747510107027,0.72300697,103120.0,103110.0,0.29132698]
[1747510107329,1.08380697,103120.0,103110.0,0.29132698]
[1747510111132,0.72300697,103120.0,103110.0,0.29132698]
[1747510111329,1.08380697,103120.0,103110.0,0.29132698]
[1747510114134,0.96121434,103120.0,103110.0,0.29132698]
[1747510114334,1.08380697,103120.0,103110.0,0.29132698]
[1747510115537,1.11480697,103120.0,103110.0,0.29132698]
[1747510129746,0.99221434,103120.0,103110.0,0.29132698]
[1747510130049,1.11480697,103120.0,103110.0,0.29132698]
[1747510137654,0.96338189,103120.0,103110.0,0.29132698]
[1747510152867,0.60258189,103120.0,103110.0,0.29132698]
[1747510153070,0.96338189,103120.0,103110.0,0.29132698]
[1747510153969,1.11480697,103120.0,103110.0,0.29132698]
[1747510154369,0.99221434,103120.0,103110.0,0.29132698]
[1747510154962,1.11480697,103120.0,103110.0,0.29132698]
[1747510156369,0.99221434,103120.0,103110.0,0.29132698]
[1747510159675,0.98677218,103120.0,103110.0,0.29132698]
[1747510160767,0.99221434,103120.0,103110.0,0.29132698]
[1747510163075,1.11480697,103120.0,103110.0,0.29132698]
[1747510166879,0.99221434,103120.0,103110.0,0.29132698]
[1747510176689,1.11480697,103120.0,103110.0,0.29132698]
[1747510182294,0.99221434,103120.0,103110.0,0.29132698]
[1747510182798,0.63141434,103120.0,103110.0,0.29132698]
[1747510182986,0.99221434,103120.0,103110.0,0.29132698]
[1747510184494,1.11480697,103120.0,103110.0,0.29132698]
[1747510202822,1.2373996,103120.0,103110.0,0.22802698]
[1747510203315,1.11480697,103120.0,103110.0,0.22802698]
[1747510204318,1.11480697,103120.0,103110.0,0.29112698]
[1747510219636,1.11480697,103120.0,103110.0,0.25912698]
[1747510221034,1.32686705,103120.0,103110.0,0.25912698]
[1747510222939,1.44945968,103120.0,103110.0,0.19582698]
[1747510223330,1.32686705,103120.0,103110.0,0.19582698]
[1747510223633,1.17544197,103120.0,103110.0,0.19582698]
[1747510224442,1.17544197,103120.0,103110.0,0.22872698]
[1747510226946,1.53624197,103120.0,103110.0,0.22872698]
[1747510238155,1.51344197,103120.0,103110.0,0.22872698]
[1747510239852,1.39084934,103120.0,103110.0,0.22872698]
[1747510240052,1.51344197,103120.0,103110.0,0.22872698]
[1747510240352,1.51344197,103120.0,103110.0,0.25992698]
[1747510243054,0.79184197,103120.0,103110.0,0.25992698]
[1747510243256,1.39084934,103120.0,103110.0,0.25992698]
[1747510243457,1.51344197,103120.0,103110.0,0.29132698]
[1747510243755,1.66497429,103120.0,103110.0,0.29132698]
[1747510254469,1.45291421,103120.0,103110.0,0.29132698]
[1747510259173,1.45291421,103120.0,103110.0,0.25992698]
[1747510259766,1.30138189,103120.0,103110.0,0.25992698]
[1747510261873,0.94058189,103120.0,103110.0,0.25992698]
[1747510264976,0.94058189,103120.0,103110.0,0.03483958]
[1747510265178,0.94058189,103120.0,103100.0,0.03702986]
[1747510265179,0.1938874,103110.0,103100.0,0.03702986]
[1747510265376,0.89137266,103110.0,103100.0,0.03702986]
[1747510265572,1.30251191,103110.0,103100.0,0.03702986]
[1747510265882,1.30251191,103110.0,103100.0,1e-08]
[1747510266080,1.48251191,103110.0,103100.0,1e-08]
[1747510266383,1.80251191,103110.0,103100.0,1e-08]
[1747510269477,2.10518785,103110.0,103100.0,1e-08]
[1747510269682,0.1939251,103090.0,103080.0,0.48387661]
[1747510269980,0.88231773,103090.0,103080.0,0.48387661]
[1747510270183,1.15905698,103090.0,103080.0,0.48387661]
[1747510270782,1.43113997,103090.0,103080.0,0.48387661]
[1747510270983,1.43113997,103090.0,103080.0,0.48687661]
[1747510271581,1.43113997,103090.0,103080.0,0.48987661]
[1747510271767,1.43151972,103090.0,103080.0,0.48987661]
[1747510271974,1.43227922,103090.0,103080.0,0.48987661]
[1747510275283,1.43227922,103090.0,103080.0,0.44054031]
[1747510281188,1.30968659,103090.0,103080.0,0.44054031]
[1747510281389,1.43772138,103090.0,103080.0,0.44054031]
[1747510284493,1.43772138,103090.0,103080.0,0.4390852]
[1747510284886,1.28656416,103090.0,103080.0,0.4390852]
[1747510285892,1.64736416,103090.0,103080.0,0.3905999]
[1747510286394,1.52477153,103090.0,103080.0,0.2627439]
[1747510286594,1.64736416,103090.0,103080.0,0.2627439]
[1747510287694,1.64736416,103090.0,103080.0,0.2934439]
[1747510288295,1.52643839,103090.0,103080.0,0.2934439]
[1747510290091,1.16563839,103090.0,103080.0,0.2934439]
[1747510293399,1.17526526,103090.0,103080.0,0.2934439]
[1747510294099,1.17526526,103090.0,103080.0,0.0995]
[1747510294400,1.38022526,103090.0,103080.0,0.0995]
[1747510294587,0.1939439,103080.0,103070.0,0.00194033]
[1747510294787,0.89692916,103080.0,103070.0,0.06624033]
[1747510295198,1.07806841,103080.0,103070.0,0.26020303]
[1747510295497,0.95547578,103080.0,103070.0,0.26020303]
[1747510295699,0.95547578,103080.0,103070.0,0.26520303]
[1747510295895,0.95547578,103080.0,103070.0,0.27020303]
[1747510296694,0.95547578,103080.0,103070.0,0.30240303]
[1747510299198,1.16043578,103080.0,103070.0,0.30240303]
[1747510299393,0.95547578,103080.0,103070.0,0.30240303]
[1747510299892,1.16043578,103080.0,103070.0,0.30240303]
[1747510301300,1.311593,103080.0,103070.0,0.30240303]
[1747510304895,1.31273225,103080.0,103070.0,0.30240303]
[1747510310906,1.31817441,103080.0,103070.0,0.30240303]
[1747510318112,0.95737441,103080.0,103070.0,0.30240303]
[1747510318409,1.31817441,103080.0,103070.0,0.30240303]
[1747510331304,1.31817441,103080.0,103070.0,0.10844033]
[1747510331504,1.31817441,103080.0,103070.0,0.30240293]
[1747510331698,1.11321441,103080.0,103070.0,0.30240293]
[1747510331914,1.31821441,103080.0,103070.0,0.30240293]
[1747510333513,1.31821441,103080.0,103070.0,0.10844033]
[1747510333813,1.31821441,103080.0,103070.0,0.30240303]
[1747510334015,1.31821441,103080.0,103070.0,0.10844033]
[1747510336918,1.16705719,103080.0,103070.0,0.10844033]
[1747510337117,1.16705719,103080.0,103070.0,0.30240303]
[1747510337718,1.16705719,103080.0,103070.0,0.10844033]
[1747510339714,1.16705719,103080.0,103070.0,0.30240303]
[1747510351343,1.31857671,103080.0,103070.0,0.30240303]
[1747510354235,0.95777671,103080.0,103070.0,0.30240303]
[1747510354437,1.31857671,103080.0,103070.0,0.30240303]
[1747510358144,0.95777671,103080.0,103070.0,0.30240303]
[1747510358344,1.31857671,103080.0,103070.0,0.30240303]
[1747510359940,0.33924018,103080.0,103070.0,0.78579566]
[1747510360245,0.15924018,103080.0,103070.0,0.99091566]
[1747510360448,0.35318398,103080.0,103070.0,0.99091566]
[1747510360645,0.15924018,103080.0,103070.0,1.43833166]
[1747510360850,0.15924018,103080.0,103070.0,1.46052429]
[1747510361150,0.15924018,103080.0,103070.0,1.33793166]
[1747510361649,0.15379802,103080.0,103070.0,1.33793166]
[1747510361837,0.0022785,103080.0,103070.0,1.38419696]
[1747510362247,0.0022785,103080.0,103070.0,1.13419696]
[1747510364253,0.0022785,103080.0,103070.0,1.18353326]
[1747510365450,0.8522367,103100.0,103070.0,1.18353326]
[1747510365451,0.48471566,103100.0,103070.0,1.48216319]
[1747510365647,0.48471566,103100.0,103090.0,1.16071036]
[1747510365954,0.48471566,103100.0,103090.0,1.24319773]
[1747510366154,0.48471566,103100.0,103090.0,1.43659373]
[1747510366356,0.48471566,103100.0,103090.0,1.64159373]
[1747510366655,0.48471566,103100.0,103090.0,1.68785903]
[1747510367350,0.48471566,103100.0,103090.0,1.68885903]
[1747510367853,0.49015782,103100.0,103090.0,1.68885903]
[1747510368655,0.48471566,103100.0,103090.0,1.68885903]
[1747510369150,0.3716093,103110.0,103100.0,0.1939062]
[1747510369353,0.37122955,103110.0,103100.0,0.37975833]
[1747510369658,0.40917171,103110.0,103100.0,0.37975833]
[1747510369848,0.36069651,103110.0,103100.0,0.37975833]
[1747510370044,0.54069651,103110.0,103100.0,0.74055833]
[1747510370356,0.54169651,103110.0,103100.0,0.74055833]
[1747510370668,0.53625435,103110.0,103100.0,0.74055833]
[1747510371360,0.53725435,103110.0,103100.0,0.74055833]
[1747510373450,0.56945435,103110.0,103100.0,0.74055833]
[1747510374163,0.53725435,103110.0,103100.0,0.74055833]
[1747510374760,0.54269651,103110.0,103100.0,0.74055833]
[1747510375760,0.53725435,103110.0,103100.0,0.74055833]
[1747510376259,0.53725435,103110.0,103100.0,0.77325833]
[1747510378762,0.54269651,103110.0,103100.0,0.77325833]
[1747510379860,0.53725435,103110.0,103100.0,0.74325833]
[1747510380054,0.56755435,103110.0,103100.0,0.74325833]
[1747510380662,0.56755435,103110.0,103100.0,0.77535833]
[1747510384866,0.57299651,103110.0,103100.0,0.77535833]
[1747510385163,0.57299651,103110.0,103100.0,0.41455833]
[1747510385360,0.57299651,103110.0,103100.0,0.78527193]
[1747510386761,0.52452311,103110.0,103100.0,0.78527193]
[1747510386967,0.25186241,103110.0,103100.0,0.90786456]
[1747510387157,0.00744216,103110.0,103100.0,0.90786456]
[1747510387361,0.00744216,103110.0,103100.0,1.00485255]
[1747510388063,0.03854216,103110.0,103100.0,1.00485255]
[1747510388269,0.03754216,103110.0,103100.0,1.00485255]
[1747510388466,0.03654216,103110.0,103100.0,1.00585255]
[1747510388969,0.0311,103110.0,103100.0,1.00585255]
[1747510389170,0.0311,103110.0,103100.0,1.05191228]
[1747510389470,0.0346,103120.0,103110.0,0.1938867]
[1747510389771,0.2284679,103120.0,103110.0,1.15107933]
[1747510390071,0.4084679,103120.0,103110.0,1.15145908]